[Event "2nd Namma Bengaluru Open-A 2025"]
[Site "Bengaluru"]
[Date "2025.04.11"]
[Round "3.13"]
[White "Anuj Shrivatri"]
[Black "Sri Sai Baswanth P"]
[Result "1-0"]
[Annotator "ChessBase"]
[ECO "A34"]
[WhiteElo "2400"]
[BlackElo "2213"]
[PlyCount "99"]
[EventDate "2025.04.10"]
[EventType "swiss"]
[EventCountry "IND"]
[SourceTitle "playchess.com"]
[Source "ChessBase"]
[SourceQuality "1"]
[TimeControl "5400+30"]

1. Nf3 {[%emt 0:00:59]} Nf6 {[%emt 0:00:22]} 2. g3 {[%emt 0:01:20]} c5 {[%emt 0:00:24]} 3. Bg2 {[%emt 0:00:17]} Nc6 {[%emt 1:31:14]} 4. c4 {[%emt 0:02:22]} d5 {[%emt 0:00:00]} 5. cxd5 {[%emt 0:00:07]} Nxd5 {[%emt 0:00:00]} 6. Nc3 {[%emt 0:00:16]} Nc7 {[%emt 0:00:00]} 7. a3 {[%emt 0:01:33]} g6 {[%emt 0:00:00]} 8. d3 {[%emt 0:14:10]} Bg7 {[%emt 0:00:00]} 9. Be3 {[%emt 0:03:10]} Nd4 {[%emt 0:00:00]} 10. Rc1 {[%emt 0:00:58]} O-O {[%emt 0:00:00]} 11. O-O {[%emt 0:05:32]} Bg4 {[%emt 0:00:00]} 12. Nd2 {[%emt 0:02:04]} Rb8 {[%emt 0:00:00]} 13. h3 {[%emt 0:01:53]} Bd7 {[%emt 0:00:00]} 14. b4 {[%emt 0:02:23]} cxb4 {[%emt 0:00:00]} 15. axb4 {[%emt 0:01:50]} Bc6 {[%emt 0:00:00]} 16. Nde4 {[%emt 0:08:45]} Nd5 {[%emt 0:00:00]} 17. Nxd5 {[%emt 0:03:33]} Bxd5 {[%emt 0:00:00]} 18. Bxd4 {[%emt 0:07:42]} Bxd4 {[%emt 0:00:00]} 19. e3 {[%emt 0:00:19]} Bg7 {[%emt 0:00:00]} 20. Qa4 {[%emt 0:01:38]} a6 {[%emt 0:00:00]} 21. Rfd1 {[%emt 0:00:52]} Rc8 {[%emt 0:00:00]} 22. Rc5 {[%emt 0:03:56]} Bc6 {[%emt 0:00:00]} 23. Qc2 {[%emt 0:00:32]} Bxe4 {[%emt 0:00:19]} 24. Bxe4 {[%emt 0:00:56]} b6 {[%emt 0:00:00]} 25. Rxc8 {[%emt 0:04:03]} Qxc8 {[%emt 0:00:03]} 26. Qxc8 {[%emt 0:00:08]} Rxc8 {[%emt 0:00:03]} 27. Bb7 {[%emt 0:00:06]} Rc2 {[%emt 0:00:43]} 28. Bxa6 {[%emt 0:00:07]} Ra2 {[%emt 0:00:15]} 29. Bc4 {[%emt 0:01:52]} Ra1 {[%emt 0:00:56]} 30. Rxa1 {[%emt 0:00:07]} Bxa1 {[%emt 0:00:04]} 31. b5 {[%emt 0:00:01]} Kg7 {[%emt 0:01:45]} 32. f4 {[%emt 0:00:34]} e5 {[%emt 0:03:26]} 33. Kf2 {[%emt 0:00:53]} f5 {[%emt 0:01:02]} 34. Kf3 {[%emt 0:00:51]} Kf6 {[%emt 0:00:35]} 35. g4 {[%emt 0:04:29]} exf4 {[%emt 0:02:16]} 36. Kxf4 {[%emt 0:00:06]} Be5+ {[%emt 0:00:24]} 37. Kf3 {[%emt 0:00:32]} h6 {[%emt 0:01:04]} 38. d4 {[%emt 0:00:34]} Bh2 {[%emt 0:00:20]} 39. Bd5 {[%emt 0:00:15]} Bd6 {[%emt 0:01:30]} 40. Bc6 {[%emt 0:00:07]} Bb4 {[%emt 0:01:20]} 41. Bd7 {[%emt 0:00:07]} h5 {[%emt 0:00:58]} 42. gxh5 {[%emt 0:11:14]} gxh5 {[%emt 0:00:02]} 43. Kg3 {[%emt 0:00:09]} Bd2 {[%emt 0:00:08]} 44. Kf4 {[%emt 0:00:08]} Bc1 {[%emt 0:02:37]} 45. Bxf5 {[%emt 0:01:43]} Bxe3+ {[%emt 0:00:29]} 46. Kxe3 {[%emt 0:00:05]} Kxf5 {[%emt 0:00:03]} 47. Kf3 {[%emt 0:00:06]} h4 {[%emt 0:00:18]} 48. Ke3 {[%emt 0:00:04]} Ke6 {[%emt 0:00:24]} 49. Ke4 {[%emt 0:00:05]} Kd6 {[%emt 0:00:07]} 50. d5 {[%emt 0:19:57]} 1-0

[Event "2nd Namma Bengaluru Open-A 2025"]
[Site "Bengaluru"]
[Date "2025.04.11"]
[Round "3.14"]
[White "Sharnarthi Viresh"]
[Black "Fedorov, Alexei"]
[Result "1/2-1/2"]
[Annotator "ChessBase"]
[ECO "E62"]
[WhiteElo "2232"]
[BlackElo "2396"]
[PlyCount "85"]
[EventDate "2025.04.10"]
[EventType "swiss"]
[EventCountry "IND"]
[SourceTitle "playchess.com"]
[Source "ChessBase"]
[SourceQuality "1"]
[TimeControl "5400+30"]

1. d4 {[%emt 0:00:54]} Nf6 {[%emt 0:00:09]} 2. Nf3 {[%emt 0:00:20]} g6 {[%emt 0:00:07]} 3. c4 {[%emt 1:30:46]} Bg7 {[%emt 0:00:07]} 4. Nc3 {[%emt 0:00:00]} d6 {[%emt 0:00:10]} 5. g3 {[%emt 0:00:00]} O-O {[%emt 0:00:22]} 6. Bg2 {[%emt 0:00:00]} Nc6 {[%emt 0:00:22]} 7. O-O {[%emt 0:00:00]} Bf5 {[%emt 0:00:04]} 8. Ne1 {[%emt 0:00:00]} Bd7 {[%emt 0:07:58]} 9. Rb1 {[%emt 0:00:00]} e5 {[%emt 0:01:43]} 10. d5 {[%emt 0:00:00]} Nd4 {[%emt 0:06:58]} 11. e3 {[%emt 0:00:00]} Nf5 {[%emt 0:00:06]} 12. b4 {[%emt 0:00:00]} Ne8 {[%emt 0:07:40]} 13. Bb2 {[%emt 0:00:00]} Nh6 {[%emt 0:00:21]} 14. h3 {[%emt 0:05:30]} f5 {[%emt 0:01:29]} 15. f4 {[%emt 0:00:00]} Qe7 {[%emt 0:07:00]} 16. Nd3 {[%emt 0:00:00]} Nf7 {[%emt 0:01:25]} 17. Kh2 {[%emt 0:00:00]} a5 {[%emt 0:04:11]} 18. a3 {[%emt 0:00:00]} h5 {[%emt 0:04:31]} 19. Ne2 {[%emt 0:00:00]} h4 {[%emt 0:02:33]} 20. fxe5 {[%emt 0:00:00]} hxg3+ {[%emt 0:00:16]} 21. Nxg3 {[%emt 0:00:00]} Nxe5 {[%emt 0:03:17]} 22. Bxe5 {[%emt 0:00:00]} Bxe5 {[%emt 0:03:22]} 23. Qf3 {[%emt 0:00:00]} axb4 {[%emt 0:00:36]} 24. axb4 {[%emt 0:00:00]} Ra3 {[%emt 0:00:36]} 25. Rbd1 {[%emt 0:00:00]} Ng7 {[%emt 0:06:39]} 26. Kh1 {[%emt 0:00:00]} Re8 {[%emt 0:00:18]} 27. Rg1 {[%emt 0:00:00]} Qh4 {[%emt 0:02:32]} 28. Nf1 {[%emt 0:00:00]} Nh5 {[%emt 0:06:13]} 29. Nxe5 {[%emt 0:00:00]} Rxe5 {[%emt 0:02:20]} 30. Rd4 {[%emt 0:00:00]} Qe1 {[%emt 0:07:19]} 31. h4 {[%emt 0:00:00]} Ra2 {[%emt 0:03:03]} 32. Bh3 {[%emt 0:00:00]} Kh7 {[%emt 0:04:23]} 33. Rg2 {[%emt 0:00:00]} Ra1 {[%emt 0:02:49]} 34. Rg1 {[%emt 0:00:00]} Qxb4 {[%emt 0:02:51]} 35. Rg5 {[%emt 0:04:24]} Be8 {[%emt 0:09:08]} 36. Rxh5+ {[%emt 0:01:41]} gxh5 {[%emt 0:00:20]} 37. Bxf5+ {[%emt 0:00:04]} Rxf5 {[%emt 0:00:12]} 38. Qxf5+ {[%emt 0:00:06]} Bg6 {[%emt 0:00:04]} 39. Qf6 {[%emt 0:01:51]} Qe1 {[%emt 0:04:35]} 40. Qe7+ {[%emt 0:01:06]} Kh6 {[%emt 0:00:18]} 41. Qf8+ {[%emt 0:00:22]} Kh7 {[%emt 0:00:04]} 42. Qe7+ {[%emt 0:01:45]} Kh6 {[%emt 0:00:06]} 43. Qf8+ {[%emt 0:00:52]} 1/2-1/2

[Event "2nd Namma Bengaluru Open-A 2025"]
[Site "Bengaluru"]
[Date "2025.04.11"]
[Round "3.15"]
[White "Deepan Chakkravarthy J."]
[Black "Vignesh B"]
[Result "1-0"]
[Annotator "ChessBase"]
[ECO "B32"]
[WhiteElo "2394"]
[BlackElo "2191"]
[PlyCount "83"]
[EventDate "2025.04.10"]
[EventType "swiss"]
[EventCountry "IND"]
[SourceTitle "playchess.com"]
[Source "ChessBase"]
[SourceQuality "1"]
[TimeControl "5400+30"]

1. e4 {[%emt 0:00:16]} c5 {[%emt 0:00:23]} 2. Nf3 {[%emt 0:00:05]} Nc6 {[%emt 0:00:05]} 3. d4 {[%emt 0:00:20]} cxd4 {[%emt 0:00:06]} 4. Nxd4 {[%emt 0:00:03]} e5 {[%emt 0:02:20]} 5. Nb3 {[%emt 0:00:05]} Nf6 {[%emt 0:00:13]} 6. Bg5 {[%emt 0:00:02]} Bb4+ {[%emt 0:02:25]} 7. c3 {[%emt 0:00:18]} Be7 {[%emt 0:00:07]} 8. Bxf6 {[%emt 0:00:11]} Bxf6 {[%emt 0:00:25]} 9. Bc4 {[%emt 0:00:05]} d6 {[%emt 0:00:21]} 10. Qd3 {[%emt 0:00:05]} Be6 {[%emt 0:00:34]} 11. N1d2 {[%emt 0:00:54]} O-O {[%emt 0:06:10]} 12. O-O {[%emt 0:01:11]} Qe7 {[%emt 0:02:04]} 13. a4 {[%emt 0:06:24]} Rfd8 {[%emt 0:11:56]} 14. Rfd1 {[%emt 0:00:39]} Rac8 {[%emt 0:00:36]} 15. a5 {[%emt 0:00:37]} Qc7 {[%emt 0:04:53]} 16. Ra4 {[%emt 0:21:16]} Ne7 {[%emt 0:23:33]} 17. Bxe6 {[%emt 0:09:02]} fxe6 {[%emt 0:01:32]} 18. a6 {[%emt 0:00:05]} b6 {[%emt 0:03:59]} 19. Nf1 {[%emt 0:09:51]} d5 {[%emt 0:04:49]} 20. Ne3 {[%emt 0:00:13]} h5 {[%emt 0:13:47]} 21. g3 {[%emt 0:06:20]} Bg5 {[%emt 0:16:14]} 22. h4 {[%emt 0:08:15]} Bf6 {[%emt 0:01:03]} 23. Raa1 {[%emt 0:05:57]} Qc6 {[%emt 0:01:17]} 24. Nc2 {[%emt 0:17:18]} dxe4 {[%emt 0:01:55]} 25. Qe2 {[%emt 0:00:15]} Nf5 {[%emt 0:01:01]} 26. Re1 {[%emt 0:03:09]} Nd6 {[%emt 0:01:06]} 27. Nd2 {[%emt 0:01:14]} Rc7 {[%emt 0:00:31]} 28. Nb4 {[%emt 0:00:20]} Qe8 {[%emt 0:01:05]} 29. Nxe4 {[%emt 0:01:39]} Nf5 {[%emt 0:00:00]} 30. Rad1 {[%emt 0:01:16]} Rcc8 {[%emt 0:00:18]} 31. Kh2 {[%emt 0:03:43]} Be7 {[%emt 0:00:21]} 32. Rxd8 {[%emt 0:02:00]} Rxd8 {[%emt 0:00:05]} 33. Rd1 {[%emt 0:00:02]} Bxb4 {[%emt 0:01:09]} 34. Rxd8 {[%emt 0:00:33]} Qxd8 {[%emt 0:00:02]} 35. cxb4 {[%emt 0:00:04]} Qd5 {[%emt 0:01:03]} 36. Ng5 {[%emt 0:00:17]} g6 {[%emt 0:00:24]} 37. Qc2 {[%emt 0:00:06]} Qd7 {[%emt 0:00:07]} 38. Nf3 {[%emt 0:02:04]} Kg7 {[%emt 0:00:59]} 39. Nxe5 {[%emt 0:00:27]} Qd5 {[%emt 0:00:28]} 40. Qc7+ {[%emt 0:00:10]} Kh6 {[%emt 0:00:31]} 41. Nf7+ {[%emt 0:00:11]} Kg7 {[%emt 0:00:24]} 42. Ng5+ {[%emt 0:00:19]} 1-0

[Event "2nd Namma Bengaluru Open-A 2025"]
[Site "Bengaluru"]
[Date "2025.04.11"]
[Round "3.16"]
[White "Panda Sambit"]
[Black "Rajarishi Karthi"]
[Result "1-0"]
[Annotator "ChessBase"]
[ECO "D35"]
[WhiteElo "2391"]
[BlackElo "2155"]
[PlyCount "197"]
[EventDate "2025.04.10"]
[EventType "swiss"]
[EventCountry "IND"]
[SourceTitle "playchess.com"]
[Source "ChessBase"]
[SourceQuality "1"]
[TimeControl "5400+30"]

1. d4 {[%emt 0:00:03]} d5 {[%emt 0:03:30]} 2. c4 {[%emt 0:00:22]} e6 {[%emt 0:00:44]} 3. Nf3 {[%emt 0:00:29]} Nf6 {[%emt 0:02:09]} 4. Nc3 {[%emt 0:00:10]} Be7 {[%emt 0:00:09]} 5. cxd5 {[%emt 0:00:11]} exd5 {[%emt 0:00:07]} 6. Bf4 {[%emt 0:00:04]} c6 {[%emt 0:01:48]} 7. e3 {[%emt 0:03:21]} Bf5 {[%emt 0:06:48]} 8. Nh4 {[%emt 0:01:22]} Be6 {[%emt 0:06:11]} 9. Bd3 {[%emt 0:21:19]} Ne4 {[%emt 0:04:58]} 10. Nf3 {[%emt 0:00:22]} f5 {[%emt 0:06:24]} 11. O-O {[%emt 0:11:18]} O-O {[%emt 0:05:27]} 12. Ne2 {[%emt 0:03:22]} Nd7 {[%emt 0:02:51]} 13. Ne5 {[%emt 0:09:31]} g5 {[%emt 0:55:54]} 14. Nxd7 {[%emt 0:01:14]} Qxd7 {[%emt 0:00:00]} 15. Be5 {[%emt 0:00:05]} Bd6 {[%emt 0:00:00]} 16. f3 {[%emt 0:02:18]} Bxe5 {[%emt 0:00:00]} 17. dxe5 {[%emt 0:05:13]} Nc5 {[%emt 0:00:00]} 18. Bc2 {[%emt 0:00:42]} Bf7 {[%emt 0:00:00]} 19. Nd4 {[%emt 0:15:39]} Bg6 {[%emt 0:00:00]} 20. Qb1 {[%emt 0:04:48]} Qe7 {[%emt 0:00:00]} 21. f4 {[%emt 0:06:48]} Ne4 {[%emt 0:00:00]} 22. Bxe4 {[%emt 0:00:21]} dxe4 {[%emt 0:00:00]} 23. b4 {[%emt 0:00:31]} gxf4 {[%emt 0:00:00]} 24. Qb3+ {[%emt 0:08:01]} Kh8 {[%emt 0:00:00]} 25. Rxf4 {[%emt 0:03:13]} Qxe5 {[%emt 0:00:00]} 26. Raf1 {[%emt 0:01:37]} Rf6 {[%emt 0:00:00]} 27. Qc2 {[%emt 0:00:45]} Rd8 {[%emt 0:00:00]} 28. Qf2 {[%emt 0:00:12]} b6 {[%emt 0:00:00]} 29. Qh4 {[%emt 0:01:00]} Rxd4 {[%emt 0:00:00]} 30. exd4 {[%emt 0:00:04]} Qxd4+ {[%emt 0:00:00]} 31. Kh1 {[%emt 0:00:06]} Qb2 {[%emt 0:00:00]} 32. Rxe4 {[%emt 0:00:42]} Kg7 {[%emt 0:00:00]} 33. Re7+ {[%emt 0:00:19]} Rf7 {[%emt 0:00:00]} 34. Rxf7+ {[%emt 0:00:21]} Bxf7 {[%emt 0:00:00]} 35. Qg5+ {[%emt 0:00:59]} Bg6 {[%emt 0:00:00]} 36. Qe7+ {[%emt 0:00:40]} Kh6 {[%emt 0:00:00]} 37. Qh4+ {[%emt 0:00:04]} Kg7 {[%emt 0:00:00]} 38. h3 {[%emt 0:01:19]} Qxa2 {[%emt 0:00:00]} 39. Qd4+ {[%emt 0:00:29]} Kh6 {[%emt 0:00:00]} 40. Qh4+ {[%emt 0:00:32]} Kg7 {[%emt 0:00:00]} 41. Qd4+ {[%emt 0:00:28]} Kh6 {[%emt 0:00:00]} 42. Rf4 {[%emt 0:00:01]} Qe6 {[%emt 0:00:00]} 43. Qd2 {[%emt 0:00:16]} Kg7 {[%emt 0:00:00]} 44. Rd4 {[%emt 0:00:08]} Bf7 {[%emt 0:00:00]} 45. Rd6 {[%emt 0:00:38]} Qe5 {[%emt 0:01:38]} 46. Rxc6 {[%emt 0:01:04]} f4 {[%emt 0:01:28]} 47. Qc3 {[%emt 0:00:45]} Qxc3 {[%emt 0:00:28]} 48. Rxc3 {[%emt 0:00:02]} Kf6 {[%emt 0:13:56]} 49. Ra3 {[%emt 0:00:56]} a5 {[%emt 0:00:00]} 50. bxa5 {[%emt 0:00:01]} bxa5 {[%emt 0:00:00]} 51. Rxa5 {[%emt 0:00:03]} Bg6 {[%emt 0:00:00]} 52. Kg1 {[%emt 0:00:18]} Be4 {[%emt 0:00:00]} 53. Kf2 {[%emt 0:00:15]} Ke6 {[%emt 0:00:00]} 54. Rg5 {[%emt 0:01:16]} Kf6 {[%emt 0:00:00]} 55. Rh5 {[%emt 0:00:27]} Bg6 {[%emt 0:00:00]} 56. Ra5 {[%emt 0:00:58]} Be4 {[%emt 0:00:00]} 57. h4 {[%emt 0:00:13]} Ke6 {[%emt 0:00:00]} 58. Ra7 {[%emt 0:01:09]} Kf6 {[%emt 0:00:00]} 59. Rc7 {[%emt 0:00:24]} Ke6 {[%emt 0:00:00]} 60. Rc8 {[%emt 0:00:33]} Kf5 {[%emt 0:06:00]} 61. Re8 {[%emt 0:00:35]} Bc2 {[%emt 0:00:00]} 62. Rg8 {[%emt 0:00:17]} Be4 {[%emt 0:00:00]} 63. Rg7 {[%emt 0:00:40]} Kf6 {[%emt 0:00:00]} 64. Rg5 {[%emt 0:00:08]} Ke6 {[%emt 0:00:00]} 65. Rg7 {[%emt 0:00:35]} Kf6 {[%emt 0:00:00]} 66. Rc7 {[%emt 0:00:48]} Ke6 {[%emt 0:00:00]} 67. Rc4 {[%emt 0:00:31]} Ke5 {[%emt 0:00:00]} 68. Rb4 {[%emt 0:00:24]} Bc6 {[%emt 0:00:00]} 69. Rb8 {[%emt 0:00:18]} Be4 {[%emt 0:00:00]} 70. Re8+ {[%emt 0:00:23]} Kd5 {[%emt 0:00:00]} 71. Re7 {[%emt 0:00:48]} Kd4 {[%emt 0:00:00]} 72. Re6 {[%emt 0:00:35]} Kd5 {[%emt 0:00:00]} 73. Re7 {[%emt 0:00:30]} Kd4 {[%emt 0:00:00]} 74. h5 {[%emt 0:00:32]} Kd5 {[%emt 0:00:00]} 75. h6 {[%emt 0:00:24]} Kd4 {[%emt 0:00:00]} 76. Ke2 {[%emt 0:00:38]} Kd5 {[%emt 0:00:00]} 77. Kf2 {[%emt 0:00:26]} Kd4 {[%emt 0:00:00]} 78. Kg1 {[%emt 0:00:12]} Kd5 {[%emt 0:00:00]} 79. Kh2 {[%emt 0:00:21]} Bf5 {[%emt 0:00:00]} 80. Kg1 {[%emt 0:00:47]} Kd6 {[%emt 0:00:00]} 81. Re1 {[%emt 0:00:22]} Kd5 {[%emt 0:00:00]} 82. Kf2 {[%emt 0:00:38]} Be4 {[%emt 0:00:00]} 83. g3 {[%emt 0:00:32]} fxg3+ {[%emt 0:00:01]} 84. Kxg3 {[%emt 0:00:03]} Bc2 {[%emt 0:01:13]} 85. Kf4 {[%emt 0:00:04]} Kd6 {[%emt 0:00:08]} 86. Kg5 {[%emt 0:00:07]} Kd7 {[%emt 0:00:15]} 87. Kf6 {[%emt 0:00:03]} Bg6 {[%emt 0:01:34]} 88. Rg1 {[%emt 0:00:14]} Bc2 {[%emt 0:00:14]} 89. Rg2 {[%emt 0:00:28]} Bb1 {[%emt 0:01:08]} 90. Kf7 {[%emt 0:01:16]} Kd6 {[%emt 0:00:11]} 91. Rg3 {[%emt 0:01:01]} Bc2 {[%emt 0:01:06]} 92. Re3 {[%emt 0:00:51]} Bb1 {[%emt 0:00:16]} 93. Re6+ {[%emt 0:00:34]} Kd7 {[%emt 0:00:49]} 94. Re7+ {[%emt 0:00:29]} Kd6 {[%emt 0:00:06]} 95. Kf6 {[%emt 0:00:31]} Bg6 {[%emt 0:00:42]} 96. Rg7 {[%emt 0:00:09]} Be4 {[%emt 0:00:11]} 97. Rg4 {[%emt 0:00:14]} Bc2 {[%emt 0:01:14]} 98. Rd4+ {[%emt 0:01:03]} Kc5 {[%emt 0:00:07]} 99. Rd8 {[%emt 0:00:42]} 1-0

[Event "2nd Namma Bengaluru Open-A 2025"]
[Site "Bengaluru"]
[Date "2025.04.11"]
[Round "3.17"]
[White "Sammed Jaykumar, Shete"]
[Black "Avirat Chauhan"]
[Result "1-0"]
[Annotator "ChessBase"]
[ECO "C26"]
[WhiteElo "2391"]
[BlackElo "2145"]
[PlyCount "111"]
[EventDate "2025.04.10"]
[EventType "swiss"]
[EventCountry "IND"]
[SourceTitle "playchess.com"]
[Source "ChessBase"]
[SourceQuality "1"]
[TimeControl "5400+30"]

1. e4 {[%emt 0:00:04]} e5 {[%emt 0:00:35]} 2. Nc3 {[%emt 0:00:55]} Nf6 {[%emt 0:00:08]} 3. g3 {[%emt 0:00:05]} Bc5 {[%emt 0:02:55]} 4. Bg2 {[%emt 0:00:08]} d6 {[%emt 0:00:47]} 5. Nge2 {[%emt 0:00:11]} Nc6 {[%emt 0:00:25]} 6. Na4 {[%emt 0:02:23]} a5 {[%emt 0:02:21]} 7. Nxc5 {[%emt 0:01:50]} dxc5 {[%emt 0:00:01]} 8. d3 {[%emt 0:00:19]} Qe7 {[%emt 0:02:25]} 9. h3 {[%emt 0:01:24]} b6 {[%emt 0:01:36]} 10. O-O {[%emt 0:01:01]} Ba6 {[%emt 0:00:38]} 11. Nc3 {[%emt 0:00:48]} O-O-O {[%emt 0:02:00]} 12. Bg5 {[%emt 0:07:29]} Bc4 {[%emt 0:10:21]} 13. f4 {[%emt 1:20:23]} h6 {[%emt 0:02:29]} 14. Bxf6 {[%emt 0:00:00]} Qxf6 {[%emt 0:00:57]} 15. Qh5 {[%emt 0:00:00]} g6 {[%emt 0:01:27]} 16. Qe2 {[%emt 0:00:00]} Nd4 {[%emt 0:00:50]} 17. Qd1 {[%emt 0:00:00]} Be6 {[%emt 0:01:03]} 18. f5 {[%emt 0:00:00]} Bd7 {[%emt 0:07:08]} 19. Nd5 {[%emt 0:00:00]} Qg5 {[%emt 0:04:24]} 20. c3 {[%emt 0:00:00]} Nc6 {[%emt 0:01:17]} 21. Qf3 {[%emt 0:00:00]} Rdg8 {[%emt 0:02:42]} 22. Kh2 {[%emt 0:00:00]} Qd8 {[%emt 0:01:04]} 23. a3 {[%emt 0:00:00]} gxf5 {[%emt 0:06:26]} 24. exf5 {[%emt 0:00:00]} Rg5 {[%emt 0:02:34]} 25. Ne3 {[%emt 0:00:00]} Rhg8 {[%emt 0:01:23]} 26. g4 {[%emt 0:00:00]} h5 {[%emt 0:00:25]} 27. b4 {[%emt 0:00:00]} hxg4 {[%emt 0:04:43]} 28. hxg4 {[%emt 0:00:00]} e4 {[%emt 0:01:14]} 29. Qxe4 {[%emt 0:00:00]} Qf6 {[%emt 0:00:15]} 30. b5 {[%emt 0:00:00]} Qe5+ {[%emt 0:00:23]} 31. Rf4 {[%emt 0:00:00]} Re8 {[%emt 0:12:48]} 32. bxc6 {[%emt 0:00:00]} Qh8+ {[%emt 0:00:01]} 33. Kg1 {[%emt 0:00:00]} Rxe4 {[%emt 0:00:08]} 34. cxd7+ {[%emt 0:00:00]} Kxd7 {[%emt 0:01:07]} 35. Rxe4 {[%emt 0:00:00]} Qxc3 {[%emt 0:00:18]} 36. Rd1 {[%emt 0:00:00]} Qb3 {[%emt 0:05:24]} 37. Re1 {[%emt 0:00:00]} Rg7 {[%emt 0:08:02]} 38. Nd5 {[%emt 0:00:00]} Kc6 {[%emt 0:00:02]} 39. Nf6 {[%emt 0:00:00]} Kb5 {[%emt 0:01:05]} 40. Ne8 {[%emt 0:00:00]} Qb2 {[%emt 0:03:47]} 41. Nxc7+ {[%emt 0:00:00]} Kc6 {[%emt 0:00:04]} 42. R4e2+ {[%emt 0:00:00]} Kxc7 {[%emt 0:00:12]} 43. Rxb2 {[%emt 0:00:00]} Rxg4 {[%emt 0:00:09]} 44. Re7+ {[%emt 0:00:00]} Kd6 {[%emt 0:00:03]} 45. f6 {[%emt 0:00:00]} c4 {[%emt 0:00:24]} 46. Rxb6+ {[%emt 0:00:00]} Kc5 {[%emt 0:00:00]} 47. Rc6+ {[%emt 0:00:00]} Kd4 {[%emt 0:00:09]} 48. Rxc4+ {[%emt 0:00:00]} Kxd3 {[%emt 0:00:03]} 49. Rxg4 {[%emt 0:00:00]} a4 {[%emt 0:00:16]} 50. Bf1+ {[%emt 0:00:00]} Kc3 {[%emt 0:00:04]} 51. Rc4+ {[%emt 0:00:00]} Kb3 {[%emt 0:00:07]} 52. Rb7+ {[%emt 0:00:00]} Ka2 {[%emt 0:00:13]} 53. Rc2+ {[%emt 0:00:00]} Ka1 {[%emt 0:00:05]} 54. Rc1+ {[%emt 0:00:00]} Ka2 {[%emt 0:00:06]} 55. Bc4+ {[%emt 0:00:00]} Kxa3 {[%emt 0:00:07]} 56. Ra1# {[%emt 0:00:00]} 1-0

[Event "2nd Namma Bengaluru Open-A 2025"]
[Site "Bengaluru"]
[Date "2025.04.11"]
[Round "3.18"]
[White "Viani Antonio Dcunha"]
[Black "Murali Krishnan B T"]
[Result "1-0"]
[Annotator "ChessBase"]
[ECO "C42"]
[WhiteElo "2378"]
[BlackElo "2090"]
[PlyCount "89"]
[EventDate "2025.04.10"]
[EventType "swiss"]
[EventCountry "IND"]
[SourceTitle "playchess.com"]
[Source "ChessBase"]
[SourceQuality "1"]
[TimeControl "5400+30"]

1. e4 {[%emt 0:01:31]} e5 {[%emt 0:02:15]} 2. Nf3 {[%emt 0:00:20]} Nf6 {[%emt 0:00:18]} 3. Nxe5 {[%emt 0:01:05]} d6 {[%emt 0:00:06]} 4. Nf3 {[%emt 0:00:10]} Nxe4 {[%emt 0:00:06]} 5. Nc3 {[%emt 0:00:18]} Nf6 {[%emt 0:02:20]} 6. d4 {[%emt 0:02:52]} d5 {[%emt 0:01:20]} 7. Bd3 {[%emt 0:08:27]} Bg4 {[%emt 0:08:12]} 8. h3 {[%emt 0:00:48]} Bh5 {[%emt 0:00:23]} 9. g4 {[%emt 0:07:27]} Bg6 {[%emt 0:00:08]} 10. Qe2+ {[%emt 0:00:14]} Be7 {[%emt 0:01:44]} 11. Bxg6 {[%emt 0:12:30]} hxg6 {[%emt 0:00:06]} 12. g5 {[%emt 0:00:27]} Ne4 {[%emt 0:03:52]} 13. Nxe4 {[%emt 0:01:59]} dxe4 {[%emt 0:00:06]} 14. Qxe4 {[%emt 0:00:06]} Nc6 {[%emt 0:00:23]} 15. Bf4 {[%emt 0:08:03]} Qd7 {[%emt 0:01:20]} 16. d5 {[%emt 0:01:24]} Nb8 {[%emt 0:34:28]} 17. O-O-O {[%emt 0:03:27]} O-O {[%emt 0:02:08]} 18. Ne5 {[%emt 0:06:00]} Qd8 {[%emt 0:00:31]} 19. h4 {[%emt 0:00:37]} Nd7 {[%emt 0:00:25]} 20. Nxd7 {[%emt 0:16:39]} Qxd7 {[%emt 0:00:13]} 21. h5 {[%emt 0:00:10]} Rae8 {[%emt 0:02:06]} 22. Qd4 {[%emt 0:02:22]} Bd6 {[%emt 0:07:32]} 23. h6 {[%emt 0:03:45]} Bxf4+ {[%emt 0:01:36]} 24. Qxf4 {[%emt 0:00:08]} Qf5 {[%emt 0:00:16]} 25. Qxf5 {[%emt 0:05:49]} gxf5 {[%emt 0:00:49]} 26. Rde1 {[%emt 0:00:59]} Kh7 {[%emt 0:02:50]} 27. c4 {[%emt 0:02:31]} Kg6 {[%emt 0:03:34]} 28. f4 {[%emt 0:05:13]} Rxe1+ {[%emt 0:04:25]} 29. Rxe1 {[%emt 0:00:05]} gxh6 {[%emt 0:00:02]} 30. gxh6 {[%emt 0:00:05]} Kxh6 {[%emt 0:00:04]} 31. Re7 {[%emt 0:01:16]} Kh5 {[%emt 0:02:12]} 32. Kd2 {[%emt 0:00:27]} Kg4 {[%emt 0:06:00]} 33. Ke3 {[%emt 0:00:06]} b6 {[%emt 0:00:42]} 34. b4 {[%emt 0:03:14]} Rh8 {[%emt 0:05:24]} 35. c5 {[%emt 0:01:59]} Rh3+ {[%emt 0:05:00]} 36. Kd4 {[%emt 0:00:06]} Kxf4 {[%emt 0:00:04]} 37. Rxc7 {[%emt 0:00:31]} Rh1 {[%emt 0:00:27]} 38. Rxf7 {[%emt 0:03:11]} Rd1+ {[%emt 0:04:47]} 39. Kc4 {[%emt 0:00:05]} bxc5 {[%emt 0:00:35]} 40. bxc5 {[%emt 0:00:07]} Rc1+ {[%emt 0:00:18]} 41. Kb5 {[%emt 0:00:29]} Ke5 {[%emt 0:00:16]} 42. d6 {[%emt 0:00:30]} a6+ {[%emt 0:01:00]} 43. Kc6 {[%emt 0:00:42]} f4 {[%emt 0:00:32]} 44. d7 {[%emt 0:00:18]} Rd1 {[%emt 0:00:42]} 45. Rf8 {[%emt 0:00:29]} 1-0